fUSD/lending_fUSD_20260121
["ID","MTS","AMOUNT","RATE_DAILY","PERIOD"]
[402912140,1768987091926,-1080.77,0.00042984,120]
[402912141,1768987091963,-2594.7879676,0.00042984,30]
[402912142,1768987091998,-27897.0,0.00042984,120]
[402912143,1768987092033,-500.0,0.00042984,120]
[402912144,1768987092069,-500.0,0.00042984,120]
[402912145,1768987092103,-13395.47,0.00042984,30]
[402912146,1768987092137,-48146.46212385,0.00042984,30]
[402912147,1768987092173,-50000.0,0.00042984,50]
[402912148,1768987092211,-50000.0,0.00042984,51]
[402912149,1768987092247,-50000.0,0.00042984,52]
[402912150,1768987092283,-50000.0,0.00042984,53]
[402912151,1768987092318,-50000.0,0.00042984,54]
[402912152,1768987092353,-50000.0,0.00042984,55]
[402912153,1768987092388,-50000.0,0.00042984,56]
[402912154,1768987092423,-50000.0,0.00042984,57]
[402912155,1768987092459,-50000.0,0.00042984,58]
[402912156,1768987092494,-50000.0,0.00042984,59]
[402912157,1768987092527,-1000.0,0.00042984,120]
[402912158,1768987092561,-37746.07029184,0.00042984,120]
[402912159,1768987092594,-500.0,0.00042984,120]
[402912160,1768987092627,-500.0,0.00042984,120]
[402912161,1768987092659,-500.0,0.00042984,120]
[402912162,1768987092693,-42110.43269333,0.00042984,30]
[402912163,1768987092724,-947.46235802,0.00042984,120]
[402912164,1768987092759,-5000.0,0.00042984,60]
[402912165,1768987092791,-528.48636876,0.00042984,120]
[402912166,1768987092827,-285.82479172,0.00042984,120]
[402912167,1768987092862,-154.40470594,0.00042984,120]
[402912168,1768987092894,-834.67729491,0.00042984,30]
[402912169,1768987092928,-1161.25728073,0.00042984,120]
[402912170,1768987092960,-178.02634334,0.00042984,120]
[402912171,1768987092994,-500.0,0.00042984,120]
[402912172,1768987093028,-597.66442362,0.00042984,120]
[402912173,1768987093064,-1000.0,0.00042984,30]
[402912174,1768987093096,-1000.0,0.00042984,30]
[402912175,1768987093130,-207.0,0.00042984,30]
[402912176,1768987093164,-500.0,0.00042984,120]
[402912177,1768987093198,-508.55,0.00042984,120]
[402912178,1768987093230,-1089.31413549,0.00042984,120]
[402912179,1768987093262,-1000.0,0.00042984,60]
[402912180,1768987093294,-1000.0,0.00042984,30]
[402912181,1768987093326,-1008.12437954,0.00042984,30]
[402912182,1768987093357,-1000.0,0.00042984,30]
[402912183,1768987093388,-1000.0,0.00042984,30]
[402912184,1768987093418,-1000.0,0.00042984,30]
[402912185,1768987093448,-1000.0,0.00042984,60]
[402912186,1768987093478,-1000.0,0.00042984,60]
[402912187,1768987093510,-1000.0,0.00042984,60]
[402912188,1768987093542,-1000.0,0.00042984,30]
[402912189,1768987093566,-1000.0,0.00042984,60]
[402912190,1768987093590,-1000.0,0.00042984,60]
[402912191,1768987093615,-1000.0,0.00042984,30]
[402912192,1768987093640,-1000.0,0.00042984,60]
[402912193,1768987093664,-1000.0,0.00042984,120]
[402912194,1768987093690,-1000.0,0.00042984,60]
[402912195,1768987093719,-500.0,0.00042984,120]
[402912196,1768987093744,-197.55008551,0.00042984,120]
[402912197,1768987094284,-321.20494453,0.00042984,30]
[402912198,1768987094312,-850.3,0.00042984,120]
[402912199,1768987094340,-850.3,0.00042984,120]
[402912200,1768987094369,-850.3,0.00042984,120]
[402912201,1768987094396,-850.3,0.00042984,120]
[402912202,1768987094423,-850.3,0.00042984,120]
[402912203,1768987094450,-850.3,0.00042984,120]
[402912204,1768987094476,-850.3,0.00042984,120]
[402912205,1768987094503,-850.3,0.00042984,120]
[402912206,1768987094529,-850.3,0.00042984,120]
[402912207,1768987094555,-850.3,0.00042984,120]
[402912208,1768987094582,-850.3,0.00042984,120]
[402912209,1768987094607,-1000.0,0.00042984,60]
[402912210,1768987094632,-850.3,0.00042984,120]
[402912211,1768987094658,-850.3,0.00042984,120]
[402912212,1768987094683,-850.3,0.00042984,120]
[402912213,1768987094709,-850.3,0.00042984,120]
[402912214,1768987094735,-850.3,0.00042984,120]
[402912215,1768987094761,-850.3,0.00042984,120]
[402912216,1768987094787,-850.3,0.00042984,120]
[402912217,1768987094812,-850.3,0.00042984,120]
[402912218,1768987094839,-850.3,0.00042984,120]
[402912219,1768987094866,-850.3,0.00042984,120]
[402912220,1768987094894,-850.3,0.00042984,120]
[402912221,1768987094925,-850.3,0.00042984,120]
[402912222,1768987094951,-850.40790822,0.00042984,120]
[402912223,1768987094977,-1000.0,0.00042984,30]
[402912224,1768987095004,-1000.0,0.00042984,60]
[402912225,1768987095029,-1000.0,0.00042984,60]
[402912226,1768987095056,-1000.0,0.00042984,30]
[402912227,1768987095081,-500.0,0.00042984,120]
[402912228,1768987095108,-500.0,0.00042984,120]
[402912229,1768987095134,-500.0,0.00042984,120]
[402912230,1768987095161,-500.0,0.00042984,120]
[402912231,1768987095189,-500.0,0.00042984,120]
[402912232,1768987095215,-474.82486749,0.00042984,120]
[402912233,1768987095240,-502.93385967,0.00042984,120]
[402912234,1768987095266,-891.69,0.00042984,120]
[402912235,1768987095292,-853.276988,0.00042984,75]
[402912236,1768987095318,-5000.0,0.00042984,120]
[402912237,1768987095343,-500.0,0.00042984,120]
[402912238,1768987095368,-500.0,0.00042984,120]
[402912239,1768987095392,-500.0,0.00042984,120]
[402912240,1768987095417,-500.0,0.00042984,120]
[402912241,1768987095443,-500.0,0.00042984,120]
[402912242,1768987095468,-500.0,0.00042984,120]
[402912243,1768987095493,-500.0,0.00042984,120]
[402912244,1768987095520,-500.0,0.00042984,120]
[402912245,1768987095547,-500.0,0.00042984,120]
[402912246,1768987095571,-500.0,0.00042984,120]
[402912247,1768987095597,-500.0,0.00042984,120]
[402912248,1768987095624,-500.0,0.00042984,120]
[402912249,1768987095651,-500.0,0.00042984,120]
[402912250,1768987095676,-500.0,0.00042984,120]
[402912251,1768987095701,-500.0,0.00042984,120]
[402912252,1768987095726,-13716.36154354,0.00042984,120]
[402912253,1768987095751,-500.0,0.00042984,120]
[402912254,1768987095776,-30841.0,0.00042984,59]
[402912255,1768987095799,-164.90788645,0.00042984,30]
[402912256,1768987095823,-520.57523847,0.00042984,120]
[402912257,1768987095847,-543.17027636,0.00042984,30]
[402912258,1768987095871,-406.11235951,0.00042984,30]
[402912259,1768987095896,-931.82060198,0.00042984,30]
[402912260,1768987095921,-457.16583307,0.00042984,30]
[402912261,1768987095949,-786.15743378,0.00042984,30]
[402912262,1768987095975,-320.0890293,0.00042984,120]
[402912263,1768987096001,-1065.44551662,0.00042984,120]
[402912264,1768987096027,-810.88509636,0.00042984,120]
[402912265,1768987096052,-973.35567599,0.00042984,120]
[402912266,1768987096077,-912.50673197,0.00042984,30]
[402912267,1768987096103,-529.98769324,0.00042984,30]
[402912268,1768987096132,-921.42494981,0.00042984,30]
[402912269,1768987096158,-1096.5551048,0.00042984,90]
[402912270,1768987096184,-992.50535184,0.00042984,30]
[402912271,1768987096210,-266.87114282,0.00042984,120]
[402912272,1768987096237,-199992.0,0.00042984,30]
[402912273,1768987096263,-612.57926544,0.00042984,30]
[402912274,1768987096289,-221.38403651,0.00042984,30]
[402912275,1768987096315,-1025.63738216,0.00042984,30]
[402912276,1768987096340,-192.93801018,0.00042984,120]
[402912277,1768987096366,-757.02911205,0.00042984,120]
[402912278,1768987096391,-661.06397809,0.00042984,120]
[402912279,1768987096416,-374.59674641,0.00042984,30]
[402912280,1768987096442,-501.39354987,0.00042984,120]
[402912281,1768987096467,-768.02089079,0.00042984,120]
[402912282,1768987096492,-206.86842792,0.00042984,30]
[402912283,1768987096517,-441.68933921,0.00042984,120]
[402912284,1768987096542,-1288.09150238,0.00042984,120]
[402912285,1768987096566,-391.07499217,0.00042984,120]
[402912286,1768987096590,-1079.60530999,0.00042984,30]
[402912287,1768987096812,-872.56094475,0.00042984,120]
[402912288,1768987096839,-1088.24447628,0.00042984,120]
[402912289,1768987096865,-860.91457437,0.00042984,120]
[402912290,1768987096890,-175.41778095,0.00042984,120]
[402912291,1768987096917,-362.73706633,0.00042984,120]
[402912292,1768987096946,-270.67283105,0.00042984,120]
[402912293,1768987096976,-245.00682073,0.00042984,30]
[402912294,1768987097003,-997.0,0.00042984,30]
[402912295,1768987097030,-265.10687691,0.00042984,120]
[402912296,1768987097056,-219.59279806,0.00042984,30]
[402912297,1768987097082,-414.751677,0.00042984,120]
[402912298,1768987097107,-328.90417099,0.00042984,30]
[402912299,1768987097132,-791.12787505,0.00042984,120]
[402912300,1768987097157,-942.76190374,0.00042984,30]
[402912301,1768987097182,-589.71754836,0.00042984,30]
[402912302,1768987097206,-1089.91872035,0.00042984,120]
[402912303,1768987097230,-602.14415355,0.00042984,120]
[402912304,1768987097255,-267.79103126,0.00042984,120]
[402912305,1768987097279,-302.90648809,0.00042984,120]
[402912306,1768987097303,-268.23095953,0.00042984,30]
[402912307,1768987097327,-594.01966801,0.00042984,30]
[402912308,1768987097351,-284.10920975,0.00042984,30]
[402912309,1768987097375,-412.55529878,0.00042984,120]
[402912310,1768987097399,-237920.58365892,0.00042984,120]
[402912311,1768987097423,-155.64773789,0.00042984,120]
[402912312,1768987097447,-365.96538417,0.00042984,30]
[402912313,1768987097471,-756.0,0.00042984,120]
[402912314,1768987097495,-1067.70094693,0.00042984,120]
[402912315,1768987097518,-518.29098527,0.00042984,120]
[402912316,1768987097542,-988.971351,0.00042984,120]
[402912317,1768987097566,-180.96117192,0.00042984,120]
[402912318,1768987097590,-833.86419327,0.00042984,120]
[402912319,1768987097614,-553.16310843,0.00042984,120]
[402912320,1768987097638,-541.81813701,0.00042984,120]
[402912321,1768987097662,-1106.1804993,0.00042984,30]
[402912322,1768987097687,-1095.34458142,0.00042984,120]
[402912323,1768987097710,-197.13034766,0.00042984,120]
[402912324,1768987097736,-533.24851449,0.00042984,30]
[402912325,1768987097761,-1028.94468694,0.00042984,120]
[402912326,1768987097785,-275.03981548,0.00042984,120]
[402912327,1768987097809,-482.91435114,0.00042984,60]
[402912328,1768987097833,-949.79484227,0.00042984,120]
[402912329,1768987097856,-238.6207398,0.00042984,120]
[402912330,1768987097881,-870.93640901,0.00042984,120]
[402912331,1768987097907,-387.95712171,0.00042984,30]
[402912332,1768987097935,-478.80341126,0.00042984,120]
[402912333,1768987097959,-899.3434623,0.00042984,90]
[402912334,1768987097984,-500.0,0.00042984,120]
[402912335,1768987098010,-494.98290445,0.00042984,30]
[402912336,1768987098035,-791.5424552,0.00042984,120]
[402912337,1768987098060,-658.0,0.00042984,120]
[402912338,1768987098085,-838.50683771,0.00042984,30]
[402912339,1768987098110,-220.04397674,0.00042984,120]
[402912340,1768987098135,-263.9702491,0.00042984,120]
[402912341,1768987098161,-328.74049087,0.00042984,120]
[402912342,1768987098187,-172.79607113,0.00042984,120]
[402912343,1768987098212,-1000.0,0.00042984,30]
[402912344,1768987098237,-482.49384245,0.00042984,120]
[402912345,1768987098262,-1002.89484506,0.00042984,30]
[402912346,1768987098288,-80000.0,0.00042984,82]
[402912347,1768987098314,-6556.0528845,0.00042984,120]
[402912348,1768987098340,-21145.79758507,0.00042984,120]
[402912349,1768987098365,-2000.0,0.00042984,120]
[402912350,1768987098391,-12000.0,0.00042984,120]
[402912351,1768987098418,-368.51466787,0.00042984,30]
[402912352,1768987098446,-300.0,0.00042984,30]
[402912353,1768987098471,-300.0,0.00042984,30]
[402912354,1768987098499,-300.0,0.00042984,30]
[402912355,1768987098524,-300.0,0.00042984,38]
[402912356,1768987098548,-300.0,0.00042984,30]
[402912357,1768987098573,-300.0,0.00042984,30]
[402912358,1768987098598,-300.0,0.00042984,30]
[402912359,1768987098625,-300.0,0.00042984,30]
[402912360,1768987098652,-300.0,0.00042984,30]
[402912361,1768987098679,-300.0,0.00042984,30]
[402912362,1768987098705,-300.0,0.00042984,30]
[402912363,1768987098730,-300.0,0.00042984,30]
[402912364,1768987098758,-300.0,0.00042984,30]
[402912365,1768987098785,-188417.67,0.00042984,30]
[402912366,1768987098812,-1308595.0,0.00042984,30]
[402912367,1768987098839,-2162875.6309163,0.00042984,120]
[402912368,1768987098865,-45920.4558585,0.00042984,120]
[402912369,1768987098891,-14465.69941006,0.00042984,30]
[402912370,1768987098919,-25952.324668,0.00042984,120]
[402912371,1768987098951,-5838.16678221,0.00042984,120]
[402912372,1768987098980,-165800.53025894,0.00042984,120]
[402912373,1768987099010,-22500.000001,0.00042984,30]
[402912374,1768987099038,-14954.48887495,0.00042984,30]
[402912375,1768987099066,-46535.6,0.00042984,120]
[402912376,1768987099095,-192.96848583,0.00042984,120]
[402912377,1768987099127,-1024.4648279,0.00042984,120]
[402912378,1768987099154,-350.04005478,0.00042984,30]
[402912379,1768987099180,-65547.42505159,0.00042984,120]
[402912380,1768987099209,-484127.0,0.00042984,60]
[402912381,1768987099236,-1000000.0,0.00042984,90]
[402912382,1768987099263,-70000.0,0.00042984,120]
[402912383,1768987099524,-763.0,0.00042984,120]
[402912384,1768987099551,-50000.0,0.00042984,120]
[402912385,1768987099576,-50000.0,0.00042984,120]
[402912386,1768987099612,-50000.0,0.00042984,120]
[402912387,1768987099640,-50000.0,0.00042984,120]
[402912388,1768987099667,-52678.1584046,0.00042984,120]
[402912389,1768987099693,-930.81230795,0.00042984,120]
[402912390,1768987099721,-189765.39125163,0.00042984,30]
[402912391,1768987099748,-3000.0,0.00042984,120]
[402912392,1768987099774,-3000.0,0.00042984,120]
[402912393,1768987099801,-3000.0,0.00042984,120]
[402912394,1768987099828,-3000.0,0.00042984,120]
[402912395,1768987099855,-3000.0,0.00042984,120]
[402912396,1768987099883,-3000.0,0.00042984,120]
[402912397,1768987099912,-3000.0,0.00042984,120]
[402912398,1768987099944,-3000.0,0.00042984,120]
[402912399,1768987099972,-3000.0,0.00042984,120]
[402912400,1768987100003,-3000.0,0.00042984,120]
[402912401,1768987100031,-3000.0,0.00042984,120]
[402912402,1768987100064,-3000.0,0.00042984,120]
[402912403,1768987100092,-3000.0,0.00042984,120]
[402912404,1768987100120,-3000.0,0.00042984,120]
[402912405,1768987100147,-3000.0,0.00042984,120]
[402912406,1768987100175,-3000.0,0.00042984,120]
[402912407,1768987100203,-3000.0,0.00042984,120]
[402912408,1768987100230,-3000.0,0.00042984,120]
[402912409,1768987100257,-3000.0,0.00042984,120]
[402912410,1768987100286,-2914.31,0.00042984,120]
[402912411,1768987100313,-400.0,0.00042984,30]
[402912412,1768987100340,-400.0,0.00042984,30]
[402912413,1768987100368,-400.0,0.00042984,30]
[402912414,1768987100396,-400.0,0.00042984,30]
[402912415,1768987100424,-400.0,0.00042984,30]
[402912416,1768987100451,-400.0,0.00042984,30]
[402912417,1768987100485,-400.0,0.00042984,30]
[402912418,1768987100513,-400.0,0.00042984,30]
[402912419,1768987100541,-400.0,0.00042984,30]
[402912420,1768987100567,-400.0,0.00042984,30]
[402912421,1768987100594,-400.0,0.00042984,30]
[402912422,1768987100621,-400.0,0.00042984,30]
[402912423,1768987100648,-400.0,0.00042984,30]
[402912424,1768987100675,-400.0,0.00042984,30]
[402912425,1768987100702,-400.0,0.00042984,30]
[402912426,1768987100734,-400.0,0.00042984,30]
[402912427,1768987100762,-419.83972288,0.00042984,30]
[402912428,1768987100796,-2000.0,0.00042984,120]
[402912429,1768987100834,-9900.0,0.00042984,31]
[402912430,1768987100871,-124244.42598836,0.00042984,120]
[402912431,1768987100900,-150.55,0.00042984,120]
[402912432,1768987100933,-150.55,0.00042984,120]
[402912433,1768987100963,-150.55,0.00042984,120]
[402912434,1768987100992,-150.55,0.00042984,120]
[402912435,1768987101021,-150.55,0.00042984,120]
[402912436,1768987101049,-150.55,0.00042984,120]
[402912437,1768987101076,-150.55,0.00042984,120]
[402912438,1768987101102,-150.55,0.00042984,120]
[402912439,1768987101130,-150.55,0.00042984,120]
[402912440,1768987101156,-150.55,0.00042984,120]
[402912441,1768987101182,-150.55,0.00042984,120]
[402912442,1768987101212,-150.55,0.00042984,120]
[402912443,1768987101238,-150.59,0.00042984,120]
[402912444,1768987101264,-12684.8154622,0.00042984,120]
[402912445,1768987101290,-3471.0,0.00042984,30]
[402912446,1768987101319,-3471.0,0.00042984,120]
[402912447,1768987101345,-316665.81424382,0.00042984,30]
[402912448,1768987101372,-425.27165823,0.00042984,120]
[402912449,1768987101397,-199998.00000003,0.00042984,30]
[402912450,1768987101427,-20000.0,0.00042984,30]
[402912451,1768987101454,-20000.0,0.00042984,60]
[402912452,1768987101480,-18000.0,0.00042984,120]
[402912453,1768987101506,-145217.43405731,0.00042984,90]
[402912454,1768987101531,-4069.01494951,0.00042984,60]
[402912455,1768987101556,-10586.31321851,0.00042984,60]
[402912456,1768987101582,-75625.81806631,0.00042984,60]
[402912457,1768987101608,-82966.28123702,0.00042984,120]
[402912458,1768987101633,-6045.76762017,0.00042984,120]
[402912459,1768987101662,-420.24821124,0.00042984,120]
[402912460,1768987101687,-225538.96121954,0.00042984,60]
[402912461,1768987101713,-166454.46822781,0.00042984,120]
[402912462,1768987107766,-1894627.3418065,0.00042984,120]
[402912463,1768987107792,-416.82335828,0.00042984,120]
[402912464,1768987107817,-152742.11156311,0.00042984,30]
[402912465,1768987107842,-325637.669999,0.00042984,32]
[402912466,1768987107867,-5000.0,0.00042984,120]
[402912467,1768987107892,-5000.0,0.00042984,120]
[402912468,1768987107919,-5000.0,0.00042984,120]
[402912469,1768987107948,-5000.0,0.00042984,120]
[402912470,1768987107974,-5000.0,0.00042984,120]
[402912471,1768987108002,-5000.0,0.00042984,120]
[402912472,1768987108027,-10000.0,0.00042984,120]
[402912473,1768987108052,-10000.0,0.00042984,120]
[402912474,1768987108077,-10000.0,0.00042984,120]
[402912475,1768987108103,-10000.0,0.00042984,120]
[402912476,1768987108129,-25595.84,0.00042984,30]
[402912477,1768987108155,-500.0,0.00042984,120]
[402912478,1768987108180,-603.3592216,0.00042984,120]
[402912479,1768987108205,-179.49018901,0.00042984,120]
[402912480,1768987108234,-50000.0,0.00042984,30]
[402912481,1768987108259,-5400.0,0.00042984,31]
[402912482,1768987108284,-130092.8635461,0.00042984,120]
[402912483,1768987108312,-50000.0,0.00042984,31]
[402912484,1768987108338,-10000.0,0.00042984,120]
[402912485,1768987108367,-10000.0,0.00042984,120]
[402912486,1768987108393,-161.44618875,0.00042984,30]
[402912487,1768987108421,-606.03232032,0.00042984,120]
[402912488,1768987108447,-333.02513129,0.00042984,30]
[402912489,1768987108471,-262.40218024,0.00042984,30]
[402912490,1768987108496,-164.96790882,0.00042984,30]
[402912491,1768987108520,-894.41554071,0.00042984,120]
[402912492,1768987108546,-669.00090101,0.00042984,30]
[402912493,1768987108571,-253.75753842,0.00042984,120]
[402912494,1768987108595,-170.44481322,0.00042984,30]
[402912495,1768987108619,-180.14502284,0.00042984,30]
[402912496,1768987108643,-533.58397066,0.00042984,30]
[402912497,1768987108668,-260.82655165,0.00042984,30]
[402912498,1768987108693,-636.40830856,0.00042984,120]
[402912499,1768987108718,-361.09533932,0.00042984,55]
[402912500,1768987108744,-374228.0,0.00042984,120]
[402912501,1768987109040,-5100.0,0.00042984,36]
[402912502,1768987109069,-10000.0,0.00042984,120]
[402912503,1768987109097,-10000.0,0.00042984,120]
[402912504,1768987109125,-10000.0,0.00042984,120]
[402912505,1768987109151,-6401.99963585,0.00042984,120]
[402912506,1768987109176,-1185.1337486,0.00042984,120]
[402912507,1768987109203,-150.0,0.00042984,120]
[402912508,1768987109229,-2328.15119492,0.00042984,120]
[402912509,1768987109260,-228.0,0.00042984,30]
[402912510,1768987109286,-315.00156812,0.00042984,30]
[402912511,1768987109311,-225.25090737,0.00042984,31]
[402912512,1768987109337,-207.17952537,0.00042984,120]
[402912513,1768987109364,-500.0,0.00042984,120]
[402912514,1768987109390,-638.64930205,0.00042984,120]
[402912515,1768987109416,-500.0,0.00042984,120]
[402912516,1768987109444,-500.0,0.00042984,120]
[402912517,1768987109469,-500.0,0.00042984,120]
[402912518,1768987109496,-500.0,0.00042984,120]
[402912519,1768987109522,-500.0,0.00042984,120]
[402912520,1768987109548,-500.0,0.00042984,120]
[402912521,1768987109574,-500.0,0.00042984,120]
[402912522,1768987109599,-500.0,0.00042984,120]
[402912523,1768987109624,-500.0,0.00042984,120]
[402912524,1768987109649,-500.0,0.00042984,120]
[402912525,1768987109673,-601.54154257,0.00042984,120]
[402912526,1768987109699,-220.47753772,0.00042984,60]
[402912527,1768987109724,-5080.0,0.00042984,120]
[402912528,1768987109750,-979.0,0.00042984,120]
[402912529,1768987109774,-209.0,0.00042984,120]
[402912530,1768987109799,-248.2288639,0.00042984,120]
[402912531,1768987109824,-500.0,0.00042984,120]
[402912532,1768987109849,-500.0,0.00042984,120]
[402912533,1768987109876,-500.0,0.00042984,120]
[402912534,1768987109901,-500.0,0.00042984,120]
[402912535,1768987109930,-500.0,0.00042984,120]
[402912536,1768987109955,-500.0,0.00042984,120]
[402912537,1768987109981,-500.0,0.00042984,120]
[402912538,1768987110009,-500.0,0.00042984,120]
[402912539,1768987110036,-500.0,0.00042984,120]
[402912540,1768987110060,-613.41229722,0.00042984,120]
[402912541,1768987110086,-303.12781938,0.00042984,30]
[402912542,1768987110111,-14619.0,0.00042984,30]
[402912543,1768987110136,-209.58,0.00042984,120]
[402912544,1768987110162,-35613.68697049,0.00042984,30]
[402912545,1768987110187,-472.82242731,0.00042984,120]
[402912546,1768987110211,-2421.51526047,0.00042984,120]
[402912547,1768987110236,-161.05413873,0.00042984,30]
[402912548,1768987110261,-35273.04741109,0.00042984,120]
[402912549,1768987110285,-164.2075926,0.00042984,120]
[402912550,1768987110309,-171.48818516,0.00042984,120]
[402912551,1768987110334,-39835.11685143,0.00042984,30]
[402912552,1768987110358,-164.47184442,0.00042984,30]
[402912553,1768987110382,-245.93406083,0.00042984,120]
[402912554,1768987110407,-170.12716093,0.00042984,30]
[402912555,1768987110432,-1393.31399187,0.00042984,30]
[402912556,1768987110457,-2236.63607376,0.00042984,30]
[402912557,1768987110483,-290.74607245,0.00042984,120]
[402912558,1768987110510,-1634.2710441,0.00042984,30]
[402912559,1768987110536,-331.9174148,0.00042984,30]
[402912560,1768987110560,-863.61707268,0.00042984,120]
[402912561,1768987110585,-950.5154592,0.00042984,120]
[402912562,1768987110611,-512647.44216385,0.00042984,120]
[402912563,1768987110635,-2251.1944028,0.00042984,120]
[402912564,1768987110661,-10000.0,0.00042984,120]
[402912565,1768987110685,-10000.0,0.00042984,120]
[402912566,1768987110712,-10000.0,0.00042984,120]
[402912567,1768987110738,-10000.0,0.00042984,120]
[402912568,1768987110764,-10000.0,0.00042984,120]
[402912569,1768987110788,-10000.0,0.00042984,120]
[402912570,1768987110812,-34150.0,0.00042984,120]
[402912571,1768987110836,-5000.0,0.00042984,120]
[402912572,1768987110860,-5000.0,0.00042984,120]
[402912573,1768987110885,-5000.0,0.00042984,120]
[402912574,1768987110911,-5000.0,0.00042984,120]
[402912575,1768987110939,-2061.95539296,0.00042984,120]
[402912576,1768987110964,-7012.02967265,0.00042984,120]
[402912577,1768987110991,-8790.67,0.00042984,30]
[402912578,1768987111020,-20876.04342136,0.00042984,120]
[402912579,1768987111046,-16400.0,0.00042984,120]
[402912580,1768987111071,-16400.0,0.00042984,120]
[402912581,1768987111096,-16400.0,0.00042984,120]
[402912582,1768987111121,-16400.0,0.00042984,120]
[402912583,1768987111147,-16400.0,0.00042984,120]
[402912584,1768987111172,-500.0,0.00042984,120]
[402912585,1768987111198,-500.0,0.00042984,120]
[402912586,1768987111224,-500.0,0.00042984,120]
[402912587,1768987111251,-500.0,0.00042984,120]
[402912588,1768987111278,-500.0,0.00042984,120]
[402912589,1768987111307,-500.0,0.00042984,120]
[402912590,1768987111339,-500.0,0.00042984,120]
[402912591,1768987111370,-500.0,0.00042984,120]
[402912592,1768987111400,-500.0,0.00042984,120]
[402912593,1768987111428,-500.0,0.00042984,120]
[402912594,1768987111453,-274.05,0.00042984,120]
[402912595,1768987111478,-16400.0,0.00042984,120]
[402912596,1768987111700,-10000.0,0.00042984,41]
[402912597,1768987111729,-200.0,0.00042984,120]
[402912598,1768987111759,-200.0,0.00042984,120]
[402912599,1768987111784,-200.0,0.00042984,120]
[402912600,1768987111810,-200.0,0.00042984,120]
[402912601,1768987111836,-162.98828633,0.00042984,120]
[402912602,1768987111861,-5000.0,0.00042984,120]
[402912603,1768987111888,-3451.50772051,0.00042984,120]
[402912604,1768987111916,-19049.26,0.00042984,120]
[402912605,1768987111947,-19049.26,0.00042984,120]
[402912606,1768987111978,-19049.26,0.00042984,120]
[402912607,1768987112007,-19049.26,0.00042984,120]
[402912608,1768987112034,-19049.26,0.00042984,120]
[402912609,1768987112060,-19049.26,0.00042984,120]
[402912610,1768987112086,-19049.26,0.00042984,120]
[402912611,1768987112112,-19049.26,0.00042984,120]
[402912612,1768987112138,-19049.26,0.00042984,120]
[402912613,1768987112164,-19049.26,0.00042984,120]
[402912614,1768987112192,-19049.26,0.00042984,120]
[402912615,1768987112220,-19049.26,0.00042984,120]
[402912616,1768987112248,-19049.26,0.00042984,120]
[402912617,1768987112275,-19049.26,0.00042984,120]
[402912618,1768987112313,-19049.26,0.00042984,120]
[402912619,1768987112341,-19049.26,0.00042984,120]
[402912620,1768987112368,-19049.26,0.00042984,120]
[402912621,1768987112396,-19049.26,0.00042984,120]
[402912622,1768987112423,-19049.26,0.00042984,120]
[402912623,1768987112452,-19049.26,0.00042984,120]
[402912624,1768987112480,-19049.26,0.00042984,120]
[402912625,1768987112508,-19049.26,0.00042984,120]
[402912626,1768987112533,-19049.26,0.00042984,120]
[402912627,1768987112558,-19049.2877,0.00042984,120]
[402912628,1768987112583,-3000.0,0.00042984,120]
[402912629,1768987112608,-3000.0,0.00042984,120]
[402912630,1768987112633,-3000.0,0.00042984,120]
[402912631,1768987112657,-3000.0,0.00042984,120]
[402912632,1768987112681,-3000.0,0.00042984,120]
[402912633,1768987112707,-3000.0,0.00042984,120]
[402912634,1768987112731,-3066.0,0.00042984,120]
[402912635,1768987112758,-1311.16,0.00042984,90]
[402912636,1768987112783,-21724.9123313,0.00042984,120]
[402912637,1768987112808,-5390.349973,0.00042984,120]
[402912638,1768987112833,-26420.7455575,0.00042984,120]
[402912639,1768987112857,-5267.62982962,0.00042984,120]